bitfinex-derivatives/quotes_BTCF0:USTF0_20241208
["timestamp","ask_amount","ask_price","bid_price","bid_amount"]
[1733619367869,0.69752001,99997.0,99989.0,0.00312508]
[1733619368069,0.731927,99997.0,99996.0,0.034968]
[1733619368259,0.4057733,99997.0,99996.0,0.034968]
[1733619371267,0.3708063,99997.0,99978.0,0.3965]
[1733619371469,0.034968,99995.0,99994.0,0.034968]
[1733619372369,0.15426215,99995.0,99994.0,0.034968]
[1733619373168,0.034968,99995.0,99994.0,0.034968]
[1733619373370,0.15427044,99995.0,99994.0,0.034968]
[1733619374073,0.034968,99995.0,99994.0,0.034968]
[1733619374469,0.15427044,99995.0,99994.0,0.034968]
[1733619375266,0.034968,99995.0,99994.0,0.034968]
[1733619376971,0.15427044,99995.0,99994.0,0.034968]
[1733619377278,0.034968,99995.0,99994.0,0.034968]
[1733619377476,0.15427044,99995.0,99994.0,0.034968]
[1733619377687,0.034968,99995.0,99994.0,0.034968]
[1733619379171,0.034968,99995.0,99994.0,0.03809245]
[1733619380973,0.034968,99995.0,99994.0,0.03809247]
[1733619384484,0.034968,99995.0,99994.0,0.03809249]
[1733619384790,0.0100063,99997.0,99994.0,0.00312449]
[1733619385087,0.034967,99997.0,99996.0,0.034968]
[1733619385278,0.034967,99997.0,99996.0,0.03809249]
[1733619387179,0.034967,99997.0,99996.0,0.034968]
[1733619387772,0.08356354,99997.0,99996.0,0.034968]
[1733619389578,0.26315714,99997.0,99996.0,0.034968]
[1733619389881,0.04859654,99997.0,99996.0,0.034968]
[1733619390382,0.32447426,100000.0,99996.0,0.36392447]
[1733619390580,0.1795936,99998.0,99996.0,0.3608]
[1733619390776,0.04859632,99997.0,99996.0,0.395768]
[1733619390976,0.04859632,99998.0,99996.0,0.3608]
[1733619391177,0.04859632,99997.0,99996.0,0.395768]
[1733619391482,0.0485936,99997.0,99996.0,0.3608]
[1733619391677,0.0485936,99997.0,99996.0,0.36392428]
[1733619391877,0.32447426,100000.0,99998.0,0.034967]
[1733619392079,0.0485936,99999.0,99998.0,0.034967]
[1733619392573,0.0485936,99999.0,99997.0,0.034967]
[1733619392788,0.17955497,99998.0,99997.0,0.034967]
[1733619392974,0.17955497,99998.0,99997.0,0.03809128]
[1733619393391,0.0485936,99998.0,99997.0,0.03809128]
[1733619393585,0.0485936,99999.0,99997.0,0.03809128]
[1733619393882,0.0485936,99998.0,99996.0,0.3608]
[1733619394089,0.22965439,100000.0,99999.0,0.034967]
[1733619394385,0.22965439,100000.0,99999.0,0.03809128]
[1733619395488,0.22965439,100000.0,99999.0,0.27687601]
[1733619396488,0.22965439,100000.0,99999.0,0.03809128]
[1733619396888,0.37932906,100000.0,99999.0,0.03809128]
[1733619397288,0.37932906,100000.0,99999.0,0.27707871]
[1733619397485,0.37932906,100000.0,99999.0,0.27708396]
[1733619400480,0.37932906,100000.0,99999.0,0.03809128]
[1733619401885,0.37932906,100000.0,99999.0,0.03809131]
[1733619402187,0.36803449,100000.0,99999.0,0.03809131]
[1733619403487,0.15850862,100000.0,99999.0,0.03809131]
[1733619406689,0.14868344,100000.0,99999.0,0.03809131]
[1733619406991,0.35820931,100000.0,99999.0,0.43459131]
[1733619407191,0.32846197,100000.0,99999.0,0.43459131]
[1733619407393,0.24986878,100000.0,99999.0,0.43459131]
[1733619407894,0.24986878,100000.0,99999.0,0.6137098]
[1733619408490,0.36963983,100000.0,99999.0,0.43459131]
[1733619408698,0.36963983,100000.0,99999.0,0.43459078]
[1733619409098,0.36963983,100000.0,99999.0,0.75867579]
[1733619409099,0.10008948,100000.0,99999.0,0.75867579]
[1733619409399,0.64052261,100020.0,100000.0,0.3965]
[1733619409586,0.64052261,100020.0,100010.0,0.81341341]
[1733619409587,0.27944261,100020.0,100010.0,0.81341341]
[1733619409787,0.27944261,100020.0,100010.0,0.88043719]
[1733619410391,0.12976736,100020.0,100010.0,0.88043719]
[1733619411399,0.16472636,100020.0,100010.0,0.88043719]
[1733619413104,0.16472636,100020.0,100010.0,1.27693719]
[1733619415400,0.12976736,100020.0,100010.0,1.27693719]
[1733619415999,0.12976736,100020.0,100010.0,0.88043719]
[1733619416797,0.00010405,100020.0,100010.0,0.88043719]
[1733619417299,0.17988258,100020.0,100010.0,0.46278678]
[1733619417496,0.32938785,100020.0,100010.0,0.46278678]
[1733619419091,0.32938785,100020.0,100010.0,0.85928678]
[1733619421000,0.32938785,100020.0,100010.0,0.86953815]
[1733619421698,0.26917953,100020.0,100010.0,0.86953815]
[1733619422516,0.11967426,100020.0,100010.0,0.86953815]
[1733619423304,0.11967426,100020.0,100010.0,0.96952315]
[1733619424097,0.00010405,100020.0,100010.0,1.94662211]
[1733619424410,0.21122521,100040.0,100020.0,0.431458]
[1733619424608,0.18622521,100040.0,100030.0,0.395756]
[1733619424814,0.18622521,100040.0,100030.0,0.39887978]
[1733619425404,0.18630953,100040.0,100030.0,0.03807978]
[1733619425713,0.19615303,100040.0,100030.0,0.03807978]
[1733619426011,0.19615303,100040.0,100030.0,0.03817172]
[1733619427206,0.16445303,100040.0,100030.0,0.03817172]
[1733619427599,0.16445303,100040.0,100030.0,0.39897172]
[1733619427802,0.04488282,100040.0,100030.0,0.39897172]
[1733619428002,0.04488282,100040.0,100030.0,0.79547172]
[1733619428712,0.04488282,100040.0,100030.0,0.43467172]
[1733619429303,0.16445303,100040.0,100030.0,0.43467172]
[1733619431608,0.16445303,100040.0,100030.0,0.40167172]
[1733619431813,0.16445303,100040.0,100030.0,0.43467172]
[1733619432615,0.3139583,100040.0,100030.0,0.43467172]
[1733619435014,0.3139583,100040.0,100030.0,0.43467114]
[1733619436418,0.19438809,100040.0,100030.0,0.43467114]
[1733619438413,0.19438809,100040.0,100030.0,0.43467115]
[1733619438809,0.37416662,100040.0,100030.0,0.43467115]
[1733619439307,0.25440869,100040.0,100030.0,0.43467115]
[1733619440410,0.25440869,100040.0,100030.0,0.43154794]
[1733619440610,0.25440869,100040.0,100030.0,0.43467117]
[1733619441923,0.25440869,100040.0,100030.0,0.43467119]
[1733619445324,0.25440869,100040.0,100030.0,0.43154794]
[1733619445518,0.25440869,100040.0,100030.0,0.43467116]
[1733619445721,0.25440869,100040.0,100030.0,0.43467114]
[1733619446514,0.65771423,100040.0,100030.0,0.43467114]
[1733619446820,0.49386682,100040.0,100030.0,0.43467114]
[1733619447023,0.25440869,100040.0,100030.0,0.43467114]
[1733619447318,0.37436181,100040.0,100030.0,0.85118071]
[1733619450023,0.37436181,100040.0,100030.0,0.85182911]
[1733619450613,0.37436181,100040.0,100030.0,0.85682633]
[1733619450823,0.37436181,100040.0,100030.0,0.67767383]
[1733619451420,0.37436181,100040.0,100030.0,0.85683084]
[1733619451625,0.37436181,100040.0,100030.0,0.67267661]
[1733619451827,0.22459863,100040.0,100030.0,0.97099833]
[1733619452425,0.37448614,100040.0,100030.0,1.29299895]
[1733619452627,0.22459863,100040.0,100030.0,1.29299895]
[1733619452836,0.22459863,100040.0,100030.0,0.97099833]
[1733619453713,0.37449575,100040.0,100030.0,1.29314024]
[1733619454732,0.37449575,100040.0,100030.0,1.03289833]
[1733619455021,0.37449575,100040.0,100030.0,0.63639833]
[1733619455228,0.37449575,100040.0,100030.0,0.95854329]
[1733619456617,0.37449575,100040.0,100030.0,0.95824427]
[1733619456813,0.37449575,100040.0,100030.0,0.95824426]
[1733619458119,0.37449575,100040.0,100030.0,1.35474426]
[1733619459127,0.37449575,100040.0,100030.0,1.3547443]
[1733619459333,0.22459863,100040.0,100030.0,1.3547443]
[1733619459627,0.37449409,100040.0,100030.0,1.3547443]
[1733619460029,0.22459863,100040.0,100030.0,1.3547443]
[1733619460227,0.37449305,100040.0,100030.0,1.3547443]
[1733619460929,0.22459863,100040.0,100030.0,1.3547443]
[1733619461131,0.37449433,100040.0,100030.0,1.3547443]
[1733619461333,0.22459863,100040.0,100030.0,1.3547443]
[1733619462322,0.44812805,100040.0,100030.0,0.49657117]
[1733619462629,0.28434095,100040.0,100030.0,0.49657117]
[1733619462830,0.65800566,100040.0,100030.0,0.49657117]
[1733619463030,0.49419546,100040.0,100030.0,0.49657117]
[1733619463224,0.04488282,100040.0,100030.0,0.49657117]
[1733619464023,0.04488282,100040.0,100030.0,0.10007117]
[1733619465833,0.04488282,100040.0,100030.0,0.10007116]
[1733619469234,0.19477928,100040.0,100030.0,0.33807663]
[1733619471228,0.37465503,100040.0,100030.0,0.95850669]
[1733619471429,0.58555857,100040.0,100030.0,0.86165069]
[1733619471740,0.64865857,100040.0,100030.0,0.42047338]
[1733619474837,0.64873857,100040.0,100030.0,0.42095338]
[1733619476137,0.64873857,100040.0,100030.0,0.42095357]
[1733619477335,0.91817546,100040.0,100030.0,0.00369535]
[1733619477636,0.46886282,100040.0,100030.0,0.00369535]
[1733619484140,0.67871733,100040.0,100030.0,0.00369535]
[1733619484342,0.61868302,100040.0,100030.0,0.24170082]
[1733619485241,0.79846727,100040.0,100030.0,0.24170082]
[1733619485547,0.61868302,100040.0,100030.0,0.24170082]
[1733619486244,0.79846727,100040.0,100030.0,0.27665682]
[1733619486446,0.79846727,100040.0,100030.0,0.45578361]
[1733619489052,0.61868302,100040.0,100030.0,0.27665682]
[1733619489455,0.79846727,100040.0,100030.0,0.27665682]
[1733619489844,0.55558302,100040.0,100030.0,0.27665682]
[1733619490044,0.19478302,100040.0,100030.0,0.33915682]
[1733619490446,0.19478302,100040.0,100030.0,0.96719566]
[1733619490855,0.31463165,100040.0,100030.0,0.72919019]
[1733619492450,0.25481733,100040.0,100030.0,0.10115135]
[1733619492649,0.25481733,100040.0,100030.0,0.46195135]
[1733619493460,0.04496282,100040.0,100030.0,0.46195135]
[1733619494149,0.30339338,100040.0,100030.0,0.46195135]
[1733619494457,0.04496282,100040.0,100030.0,0.46195135]
[1733619494747,0.30339338,100040.0,100030.0,0.46195135]
[1733619494961,0.25481733,100040.0,100030.0,0.46195135]
[1733619495649,0.25481733,100040.0,100030.0,0.46195109]
[1733619497045,0.04496282,100040.0,100030.0,0.46195109]
[1733619497851,0.22468357,100040.0,100030.0,0.640973]
[1733619498151,0.27325933,100040.0,100030.0,0.640973]
[1733619498353,0.22468357,100040.0,100030.0,0.640973]
[1733619499556,0.16476467,100040.0,100030.0,1.08879705]
[1733619500557,0.16476467,100040.0,100030.0,1.15173576]
[1733619500760,0.16476467,100040.0,100030.0,1.15173575]
[1733619501251,0.22770338,100040.0,100030.0,0.72799704]
[1733619501456,0.58850338,100040.0,100030.0,0.72799704]
[1733619501656,0.58850338,100040.0,100030.0,0.96655042]
[1733619502859,0.22770338,100040.0,100030.0,0.96655042]
[1733619503652,0.22770338,100040.0,100030.0,0.96691474]
[1733619503952,0.22770338,100040.0,100030.0,0.72836136]
[1733619505162,0.22770338,100040.0,100030.0,0.72827999]
[1733619507463,0.37745569,100040.0,100030.0,0.33984543]
[1733619507757,0.37745305,100040.0,100030.0,0.63816715]
[1733619507962,0.37745305,100040.0,100030.0,0.96636855]
[1733619509064,0.73825305,100040.0,100030.0,0.96636855]
[1733619509960,0.73825305,100040.0,100030.0,0.63816715]
[1733619510161,0.73825305,100040.0,100030.0,0.96637205]
[1733619511566,0.37745305,100040.0,100030.0,0.96637205]
[1733619512066,0.31451434,100040.0,100030.0,1.02931076]
[1733619512957,0.31451434,100040.0,100030.0,1.02931082]
[1733619514578,0.25481733,100040.0,100030.0,0.16408985]
[1733619516169,0.25481733,100040.0,100030.0,0.10115114]
[1733619516363,0.25481733,100040.0,100030.0,0.09802794]
[1733619516663,0.25481733,100040.0,100030.0,0.10115117]
[1733619517463,0.61561733,100040.0,100030.0,0.10115117]
[1733619518669,0.25481733,100040.0,100030.0,0.10115117]
[1733619519969,0.25481733,100040.0,100030.0,0.10115118]
[1733619521069,0.31775604,100040.0,100030.0,0.10115118]
[1733619521461,0.37769892,100040.0,100030.0,1.08605899]
[1733619521666,0.73849892,100040.0,100030.0,1.08605899]
[1733619521974,0.37769892,100040.0,100030.0,1.08605899]
[1733619523675,0.37769892,100040.0,100030.0,1.08603728]
[1733619527068,0.37769892,100040.0,100030.0,1.08603726]
[1733619528079,0.31476021,100040.0,100030.0,1.08603726]
[1733619528567,0.31476021,100040.0,100030.0,1.08610568]
[1733619529570,0.22482775,100040.0,100030.0,0.51952369]
[1733619536684,0.31478858,100040.0,100030.0,1.08574972]
[1733619541883,0.31478858,100040.0,100030.0,1.08568583]
[1733619544693,0.31478858,100040.0,100030.0,0.72769787]
[1733619544694,0.37473095,100040.0,100030.0,0.72769787]
[1733619544992,0.37473095,100040.0,100030.0,1.15143658]
[1733619545288,0.19486602,100040.0,100030.0,1.50942454]
[1733619546777,0.19486602,100040.0,100030.0,1.50913489]
[1733619547178,0.19486602,100040.0,100030.0,1.15614395]
[1733619547589,0.25780473,100040.0,100030.0,1.15614395]
[1733619547785,0.25780473,100040.0,100030.0,0.79534395]
[1733619548285,0.25780473,100040.0,100030.0,0.73240524]
[1733619549688,0.25780473,100040.0,100030.0,0.73240522]
[1733619551783,0.25780473,100040.0,100030.0,0.28530163]
[1733619551784,0.47781016,100040.0,100030.0,0.28530163]
[1733619551984,0.31775604,100040.0,100030.0,0.28530163]
[1733619556490,0.31775604,100040.0,100030.0,0.28030459]
[1733619556794,0.31775604,100040.0,100030.0,0.28530168]
[1733619559690,0.37769451,100040.0,100030.0,1.09074874]
[1733619560190,0.37769451,100040.0,100030.0,1.09074871]
[1733619561098,0.37769451,100040.0,100030.0,1.09074872]
[1733619562305,0.37769451,100040.0,100030.0,1.08262847]
[1733619562595,0.37769451,100040.0,100030.0,1.45154867]
[1733619562795,0.3147558,100040.0,100030.0,1.51448738]
[1733619563189,0.3147558,100040.0,100030.0,1.45154867]
[1733619563502,0.3147558,100040.0,100030.0,1.45154851]
[1733619563796,0.3147558,100040.0,100030.0,1.84230488]
[1733619563995,0.3147558,100040.0,100030.0,1.8425867]
[1733619565406,0.3147558,100040.0,100030.0,1.84202325]
[1733619566192,0.3147558,100040.0,100030.0,1.45132065]
[1733619566397,0.3147558,100040.0,100030.0,1.84204156]
[1733619566593,0.3147558,100040.0,100030.0,1.45134045]
[1733619566790,0.3147558,100040.0,100030.0,0.70582049]
[1733619566791,0.27340002,100040.0,100030.0,0.70582049]
[1733619567106,0.22482481,100040.0,100030.0,0.88497487]
[1733619567302,0.22482481,100040.0,100030.0,0.87685483]
[1733619567500,0.22482481,100040.0,100030.0,0.8849749]
[1733619569800,0.22482481,100040.0,100030.0,0.94791361]
[1733619570007,0.22482481,100040.0,100030.0,0.58711361]
[1733619570515,0.28776352,100040.0,100030.0,0.5241749]
[1733619573595,0.22482481,100040.0,100030.0,0.5241749]
[1733619574811,0.31475436,100040.0,100030.0,0.73325312]
[1733619575003,0.31475436,100040.0,100030.0,1.48279669]
[1733619575198,0.31475436,100040.0,100030.0,1.45204108]
[1733619575601,0.16487017,100040.0,100030.0,1.45204108]
[1733619575805,0.31475436,100040.0,100030.0,1.45204108]
[1733619576508,0.31475436,100040.0,100030.0,1.45220074]
[1733619577105,0.31475436,100040.0,100030.0,1.45220081]
[1733619580212,0.37769307,100040.0,100030.0,1.45220081]
[1733619580506,0.37769307,100040.0,100030.0,1.44408067]
[1733619580707,0.37769307,100040.0,100030.0,1.45220081]
[1733619580912,0.16487017,100040.0,100030.0,1.45220081]
[1733619581416,0.31475436,100040.0,100030.0,1.45220081]
[1733619581603,0.16487017,100040.0,100030.0,1.45220081]
[1733619582004,0.27340026,100040.0,100030.0,0.88501743]
[1733619582308,0.22482481,100040.0,100030.0,0.52421743]
[1733619587011,0.28776352,100040.0,100030.0,0.52421743]
[1733619587411,0.28776352,100040.0,100030.0,0.52421746]
[1733619589416,0.28776352,100040.0,100030.0,0.51922043]
[1733619590011,0.37770805,100040.0,100030.0,1.08710424]
[1733619590420,0.37770805,100040.0,100030.0,1.09210128]
[1733619590718,0.37770805,100040.0,100030.0,1.48464922]
[1733619591017,0.37770805,100040.0,100030.0,1.09210128]
[1733619591213,0.37770805,100040.0,100030.0,1.09211821]
[1733619591413,0.37770805,100040.0,100030.0,1.08712117]
[1733619591613,0.37770805,100040.0,100030.0,1.18109318]
[1733619595625,0.37770805,100040.0,100030.0,1.08726015]
[1733619595814,0.37770805,100040.0,100030.0,1.18101482]
[1733619596121,0.37770805,100040.0,100030.0,1.18107966]
[1733619596623,0.37770805,100040.0,100030.0,1.4798271]
[1733619596922,0.37770805,100040.0,100030.0,1.18107966]
[1733619597221,0.37770805,100040.0,100030.0,1.08724596]
[1733619597518,0.37770805,100040.0,100030.0,1.47975045]
[1733619597916,0.37770805,100040.0,100030.0,1.18100176]
[1733619598514,0.37770805,100040.0,100030.0,1.08724512]
[1733619599920,0.37770805,100040.0,100030.0,1.08721744]
[1733619600526,0.37770805,100040.0,100030.0,1.5417669]
[1733619600725,0.37770805,100040.0,100030.0,1.44793325]
[1733619601023,0.37770805,100040.0,100030.0,1.84022991]
[1733619601518,0.37770805,100040.0,100030.0,1.53847079]
[1733619601519,0.31476934,100040.0,100030.0,1.53847079]
[1733619601718,0.31476934,100040.0,100030.0,1.54159389]
[1733619602019,0.27981434,100040.0,100030.0,1.6045326]
[1733619602225,0.2100172,100040.0,100030.0,1.60434714]
[1733619602426,0.00016432,100040.0,100030.0,1.60434714]
[1733619602727,0.12005356,100040.0,100030.0,2.00084714]
[1733619602912,0.00016432,100040.0,100030.0,1.64285918]
[1733619603113,0.00016432,100040.0,100030.0,2.00109286]
[1733619603319,0.00016432,100040.0,100030.0,2.09647934]
[1733619603320,0.09007718,100040.0,100030.0,2.09647934]
[1733619603522,0.08991286,100040.0,100030.0,2.54932617]
[1733619604023,0.13481333,100050.0,100030.0,2.54224616]
[1733619604231,0.09986433,100050.0,100040.0,0.90995106]
[1733619604422,0.21043898,100060.0,100040.0,2.02554579]
[1733619604617,0.20991897,100060.0,100050.0,0.81769933]
[1733619604828,0.20991897,100060.0,100050.0,1.50537917]
[1733619605021,0.15000941,100060.0,100050.0,0.94001781]
[1733619605627,0.26968349,100060.0,100050.0,1.09805667]
[1733619606020,0.26968349,100060.0,100050.0,1.33651781]
[1733619606420,0.11979098,100060.0,100050.0,1.33651781]
[1733619606922,0.11979098,100060.0,100050.0,1.09805667]
[1733619607529,0.20947564,100060.0,100050.0,1.09805667]
[1733619609625,0.08980156,100060.0,100050.0,1.09805667]
[1733619609833,0.08980156,100060.0,100050.0,1.33651781]
[1733619610627,0.08980156,100060.0,100050.0,1.09805667]
[1733619611333,0.08980156,100060.0,100050.0,0.71164181]
[1733619611917,0.0001169,100060.0,100050.0,1.06936871]
[1733619612225,0.0001169,100060.0,100050.0,0.77125709]
[1733619614324,0.0001169,100060.0,100050.0,1.16775709]
[1733619616824,0.0001169,100060.0,100050.0,1.16775621]
[1733619617023,0.09800061,100060.0,100050.0,1.28321214]
[1733619617432,0.09800061,100060.0,100050.0,0.88671214]
[1733619617942,0.0350619,100060.0,100050.0,0.94965085]
[1733619618331,0.0350619,100060.0,100050.0,0.88671214]
[1733619618332,0.09800061,100060.0,100050.0,0.88671214]
[1733619618524,0.03968556,100060.0,100050.0,1.56973995]
[1733619618729,0.19472408,100080.0,100070.0,0.034942]
[1733619618931,0.05005,100080.0,100070.0,1.00097983]
[1733619619136,0.11298871,100080.0,100070.0,1.60380226]
[1733619619335,0.14792671,100080.0,100070.0,0.45490226]
[1733619619639,0.24345147,100080.0,100070.0,0.21644112]
[1733619620136,0.36312555,100080.0,100070.0,0.03806422]
[1733619622439,0.30018684,100080.0,100070.0,0.03806422]
[1733619622735,0.36312555,100080.0,100070.0,0.03806422]
[1733619626233,0.51301806,100080.0,100070.0,0.03806422]
[1733619626441,0.51301806,100080.0,100070.0,0.034942]
[1733619626634,0.51301806,100080.0,100070.0,0.03806393]
[1733619627034,0.24345147,100080.0,100070.0,0.21644083]
[1733619628230,0.18051276,100080.0,100070.0,0.45490197]
[1733619628633,0.12903276,100080.0,100070.0,0.45490197]
[1733619629032,0.12903276,100080.0,100070.0,0.21644083]
[1733619629234,0.12903276,100080.0,100070.0,0.45490197]
[1733619630647,0.19197147,100080.0,100070.0,0.45490197]
[1733619631948,0.24870684,100080.0,100070.0,0.45490197]
[1733619632446,0.12903276,100080.0,100070.0,0.27652507]
[1733619632648,0.24870684,100080.0,100070.0,0.45513702]
[1733619633147,0.24870684,100080.0,100070.0,0.27652508]
[1733619634542,0.24870684,100080.0,100070.0,0.90117568]
[1733619635040,0.24870684,100080.0,100070.0,0.45521044]
[1733619635041,0.39859935,100080.0,100070.0,0.45521044]
[1733619635233,0.24870684,100080.0,100070.0,0.45521044]
[1733619636543,0.24870684,100080.0,100070.0,0.27652508]
[1733619636738,0.24870684,100080.0,100070.0,0.27652504]
[1733619638452,0.46153806,100080.0,100070.0,0.27652504]
[1733619641048,0.88527677,100080.0,100070.0,0.24158304]
[1733619641248,0.76560269,100080.0,100070.0,0.4203382]
[1733619641441,0.70266398,100080.0,100070.0,0.4203382]
[1733619641841,0.88252597,100080.0,100070.0,0.4203382]
[1733619642042,0.76262598,100080.0,100070.0,0.0031219]
[1733619643345,0.76262598,100080.0,100070.0,0.0380639]
[1733619643546,0.69968727,100080.0,100070.0,0.10100261]
[1733619643745,0.33888727,100080.0,100070.0,0.10100261]
[1733619644449,0.12903276,100080.0,100070.0,0.46180261]
[1733619644639,0.12903276,100080.0,100070.0,0.3988639]
[1733619645245,0.12903276,100080.0,100070.0,0.0380639]
[1733619645443,0.38744724,100080.0,100070.0,0.0380639]
[1733619645653,0.33888727,100080.0,100070.0,0.0380639]
[1733619646250,0.40182598,100080.0,100070.0,0.0380639]
[1733619646447,0.19197147,100080.0,100070.0,0.03806405]
[1733619646850,0.45038592,100080.0,100070.0,0.03806405]
[1733619647052,0.40182598,100080.0,100070.0,0.03806405]
[1733619647253,0.19197147,100080.0,100070.0,0.03806405]
[1733619647454,0.45038595,100080.0,100070.0,0.03806405]
[1733619647647,0.19197147,100080.0,100070.0,0.03806405]
[1733619648156,0.45038595,100080.0,100070.0,0.03806405]
[1733619648353,0.40182598,100080.0,100070.0,0.03806405]
[1733619648848,0.40040598,100080.0,100070.0,0.03806405]
[1733619649550,0.37024634,100080.0,100070.0,0.21681921]
[1733619649751,0.37024624,100080.0,100070.0,0.21681921]
[1733619650052,0.46009542,100080.0,100070.0,0.66271205]
[1733619650245,0.31034878,100080.0,100070.0,0.66271205]
[1733619650551,0.46009542,100080.0,100070.0,0.66271205]
[1733619650950,0.39715671,100080.0,100070.0,0.66271205]
[1733619653345,0.39715671,100080.0,100070.0,0.66271189]
[1733619654657,0.36506871,100080.0,100070.0,1.02351189]
[1733619656151,0.36506871,100080.0,100070.0,0.7256506]
[1733619656760,0.36506871,100080.0,100070.0,0.72538756]
[1733619657150,0.27521953,100080.0,100070.0,0.27986523]
[1733619657759,0.09552476,100080.0,100070.0,0.33948611]
[1733619659651,0.06312476,100080.0,100070.0,0.33948611]
[1733619659852,0.2128727,100080.0,100070.0,0.36998611]
[1733619661653,0.2128727,100080.0,100070.0,0.54882679]
[1733619662264,0.2128727,100080.0,100070.0,0.36998611]
[1733619662765,0.2128727,100080.0,100070.0,0.54881789]
[1733619663465,0.2478107,100080.0,100070.0,0.54881789]
[1733619663661,0.2478107,100080.0,100070.0,0.48587918]
[1733619664566,0.31074941,100080.0,100070.0,0.48587918]
[1733619665155,0.2807874,100080.0,100070.0,0.69287494]
[1733619665663,0.2807874,100080.0,100070.0,0.69287492]
[1733619665971,0.2807874,100080.0,100070.0,0.69287493]
[1733619667059,0.21784869,100080.0,100070.0,0.69287493]
[1733619669367,0.21720869,100080.0,100070.0,0.69287493]
[1733619669559,0.21720869,100080.0,100070.0,0.3666755]
[1733619669760,0.21720869,100080.0,100070.0,0.69295407]
[1733619669957,0.21720869,100080.0,100070.0,1.05375407]
[1733619670163,0.18227069,100080.0,100070.0,1.05375407]
[1733619671157,0.15111069,100080.0,100070.0,1.11669278]
[1733619671665,0.11991069,100080.0,100070.0,1.11669278]
[1733619672170,0.2283761,100080.0,100070.0,0.67120367]
[1733619672367,0.17981953,100080.0,100070.0,0.67120366]
[1733619672865,0.17981953,100080.0,100070.0,1.36917714]
[1733619673065,0.14985734,100080.0,100070.0,1.50040219]
[1733619673265,0.14985734,100080.0,100070.0,1.50039757]
[1733619673664,0.14985734,100080.0,100070.0,1.32150111]
[1733619673860,0.22824799,100090.0,100080.0,0.034938]
[1733619674060,0.17969477,100090.0,100080.0,0.97335012]
[1733619674472,0.04993,100090.0,100080.0,1.07319062]
[1733619674668,0.04993,100090.0,100080.0,0.89439711]
[1733619674971,0.04993,100090.0,100080.0,1.07317831]
[1733619675171,0.04993,100090.0,100080.0,1.52887608]
[1733619675365,0.04993,100090.0,100080.0,1.52785208]
[1733619675573,0.04993,100090.0,100080.0,1.52473021]
[1733619675767,0.04993,100090.0,100080.0,1.28931679]
[1733619676275,0.04993,100090.0,100080.0,1.5274098]
[1733619676463,0.04993,100090.0,100080.0,1.28931679]
[1733619677368,0.1,100100.0,100090.0,0.431435]
[1733619677568,0.1,100100.0,100090.0,1.40107912]
[1733619677768,0.1,100100.0,100090.0,1.85288802]
[1733619677991,0.1,100100.0,100090.0,1.95279311]
[1733619678164,0.1,100100.0,100090.0,2.25279311]
[1733619678366,0.05003951,100110.0,100100.0,0.431431]
[1733619678567,0.05003951,100110.0,100100.0,1.13154995]
[1733619678762,0.05003951,100110.0,100100.0,1.36951872]
[1733619678967,0.05003951,100110.0,100100.0,1.46941383]
[1733619679162,0.05003951,100110.0,100100.0,1.46629296]
[1733619679376,0.05003951,100110.0,100100.0,1.46941361]
[1733619679573,0.05003951,100110.0,100100.0,1.29109295]
[1733619679774,0.05003951,100110.0,100100.0,1.29608563]
[1733619680070,0.05003951,100110.0,100100.0,1.74164128]
[1733619680268,0.05003951,100110.0,100100.0,1.68054406]
[1733619681371,0.00010951,100110.0,100100.0,1.68054406]
[1733619682273,0.04993,100120.0,100100.0,1.68054372]
[1733619682469,0.04993,100120.0,100110.0,0.83889966]
[1733619682670,0.04993,100120.0,100110.0,0.91334065]
[1733619684379,0.04993,100120.0,100110.0,0.67610582]
[1733619684679,0.04993,100120.0,100110.0,0.91334065]
[1733619685483,0.04993,100120.0,100110.0,0.94664065]
[1733619686073,0.04993,100120.0,100110.0,0.94664029]
[1733619686477,0.04993,100120.0,100110.0,1.34314029]
[1733619686675,0.04993,100120.0,100110.0,1.10590546]
[1733619687078,0.04993,100120.0,100110.0,0.92797934]
[1733619687477,0.04993,100120.0,100110.0,0.86504063]
[1733619687679,0.04993,100120.0,100110.0,0.92797934]
[1733619689583,0.00931205,100130.0,100110.0,0.92797934]
[1733619689783,0.05000899,100130.0,100120.0,0.45866271]
[1733619689987,0.05000899,100130.0,100120.0,0.46677534]
[1733619692482,0.05000899,100130.0,100120.0,0.45866271]
[1733619692689,0.05000899,100130.0,100120.0,0.46677538]
[1733619694776,0.1478687,100130.0,100120.0,0.40383667]
[1733619695089,0.1478687,100130.0,100120.0,0.034924]
[1733619695981,0.1478687,100130.0,100120.0,0.03804433]
[1733619696178,0.5086687,100130.0,100120.0,0.03804433]
[1733619696386,0.034924,100120.0,100110.0,0.034926]
[1733619696683,0.55816271,100120.0,100110.0,0.03804648]
[1733619697283,0.62110142,100120.0,100110.0,0.00312048]
[1733619697689,0.034928,100110.0,100100.0,0.39573]
[1733619697987,0.09786671,100110.0,100100.0,0.40072282]
[1733619698385,0.09786671,100110.0,100100.0,0.46366153]
[1733619698386,0.034928,100110.0,100100.0,0.46366153]
[1733619698589,0.495225,100120.0,100110.0,0.034928]
[1733619699096,0.134425,100120.0,100110.0,0.034928]
[1733619699275,0.134425,100120.0,100110.0,0.09786671]
[1733619699481,0.0995,100120.0,100110.0,0.45866671]
[1733619699784,0.14943,100120.0,100110.0,0.45866671]
[1733619699978,0.14943,100120.0,100110.0,0.4636597]
[1733619700505,0.14943,100120.0,100110.0,0.45866671]
[1733619701390,0.14943,100120.0,100110.0,0.46365997]
[1733619702087,0.184354,100120.0,100110.0,0.64166354]
[1733619702590,0.184354,100120.0,100110.0,0.87900163]
[1733619703392,0.184354,100120.0,100110.0,0.70099806]
[1733619704591,0.24729271,100120.0,100110.0,0.81641735]
[1733619705493,0.24729271,100120.0,100110.0,0.81641706]
[1733619705693,0.24729271,100120.0,100110.0,0.82141003]
[1733619706383,0.67103142,100120.0,100110.0,0.46061003]
[1733619707095,0.67103142,100120.0,100110.0,0.42568203]
[1733619707282,0.67103142,100120.0,100110.0,0.42068906]
[1733619707490,0.8203393,100120.0,100110.0,0.42068906]
[1733619707998,0.8203393,100120.0,100110.0,0.18335097]
[1733619708384,0.8203393,100120.0,100110.0,0.08355097]
[1733619708586,0.084858,100110.0,100100.0,0.5340107]
[1733619708786,0.50859671,100110.0,100100.0,0.23733809]
[1733619709089,0.50859671,100110.0,100090.0,0.5695047]
[1733619709090,0.084861,100100.0,100090.0,0.5695047]
[1733619709287,0.83755284,100100.0,100090.0,0.034934]
[1733619709488,0.65812386,100100.0,100090.0,0.034934]
[1733619709701,0.65812386,100100.0,100090.0,0.03805499]
[1733619709702,0.83755284,100100.0,100090.0,0.03805499]
[1733619709999,0.64855386,100100.0,100090.0,0.03805499]
[1733619710183,0.82798284,100100.0,100090.0,0.03805499]
[1733619710787,0.76504413,100100.0,100090.0,0.03805499]
[1733619711088,0.64855386,100100.0,100090.0,0.03805499]
[1733619711494,0.82798284,100100.0,100090.0,0.03805499]
[1733619711687,0.82798284,100100.0,100090.0,0.1009937]
[1733619711688,0.58561515,100100.0,100090.0,0.1009937]
[1733619711882,0.64855386,100100.0,100090.0,0.07115499]